[Event "Titled Tuesday Blitz May 10 Late 2022"]
[White "Martinez Reyes, Pedro Ramon"]
[Black "Villiers, Thomas"]
[WhiteFideId "3901807"]
[BlackFideId "427209"]
[WhiteElo "2410"]
[BlackElo "2164"]
[Result "1/2-1/2"]
[Round "07"]
[TimeControl "180+1"]
[Date "2022.05.11"]
[WhiteClock "0:00:11"]
[BlackClock "0:00:07"]

1. e4 {[%clk 0:03:00]}  c5 {[%clk 0:02:59]} 2. d4 {[%clk 0:02:59]}  cxd4 {[%clk 0:03:00]} 3. c3 {[%clk 0:03:00]}  d5 {[%clk 0:02:59]} 4. exd5 {[%clk 0:02:58]}  Qxd5 {[%clk 0:03:00]} 5. cxd4 {[%clk 0:02:58]}  Nc6 {[%clk 0:02:58]} 6. Nf3 {[%clk 0:02:59]}  Bg4 {[%clk 0:02:59]} 7. Be2 {[%clk 0:02:59]}  e6 {[%clk 0:02:55]} 8. Nc3 {[%clk 0:02:59]}  Bb4 {[%clk 0:02:55]} 9. O-O {[%clk 0:02:58]}  Qa5 {[%clk 0:02:46]} 10. d5 {[%clk 0:02:57]}  exd5 {[%clk 0:02:44]} 11. Qxd5 {[%clk 0:02:52]}  Bxc3 {[%clk 0:02:37]} 12. Qe4+ {[%clk 0:02:51]}  Nge7 {[%clk 0:02:29]} 13. bxc3 {[%clk 0:02:44]}  Bf5 {[%clk 0:02:28]} 14. Qh4 {[%clk 0:02:26]}  O-O {[%clk 0:02:25]} 15. Bd2 {[%clk 0:02:12]}  Rad8 {[%clk 0:02:22]} 16. Rfd1 {[%clk 0:02:04]}  Bd3 {[%clk 0:02:10]} 17. c4 {[%clk 0:01:59]}  Qa4 {[%clk 0:01:48]} 18. Re1 {[%clk 0:01:46]}  Nf5 {[%clk 0:01:35]} 19. Qg5 {[%clk 0:01:44]}  Bxe2 {[%clk 0:01:27]} 20. Rxe2 {[%clk 0:01:43]}  Nfd4 {[%clk 0:01:27]} 21. Nxd4 {[%clk 0:01:41]}  Nxd4 {[%clk 0:01:26]} 22. Re4 {[%clk 0:01:40]}  Qxc4 {[%clk 0:01:09]} 23. Rae1 {[%clk 0:01:39]}  h6 {[%clk 0:01:00]} 24. Qf4 {[%clk 0:01:35]}  Qd3 {[%clk 0:00:46]} 25. Bb4 {[%clk 0:01:27]}  a5 {[%clk 0:00:40]} 26. Bxf8 {[%clk 0:01:26]}  Ne2+ {[%clk 0:00:39]} 27. R4xe2 {[%clk 0:00:54]}  Qxe2 {[%clk 0:00:37]} 28. Qc1 {[%clk 0:00:41]}  Qxa2 {[%clk 0:00:37]} 29. Be7 {[%clk 0:00:39]}  Re8 {[%clk 0:00:34]} 30. Bc5 {[%clk 0:00:32]}  Rc8 {[%clk 0:00:32]} 31. Qe3 {[%clk 0:00:29]}  a4 {[%clk 0:00:29]} 32. h4 {[%clk 0:00:30]}  Qc4 {[%clk 0:00:27]} 33. Bd4 {[%clk 0:00:29]}  Rd8 {[%clk 0:00:24]} 34. Ba1 {[%clk 0:00:28]}  Qxh4 {[%clk 0:00:21]} 35. Qe5 {[%clk 0:00:27]}  Qg5 {[%clk 0:00:19]} 36. Qc7 {[%clk 0:00:25]}  a3 {[%clk 0:00:17]} 37. Qxb7 {[%clk 0:00:25]}  a2 {[%clk 0:00:16]} 38. Qb2 {[%clk 0:00:25]}  Rd2 {[%clk 0:00:16]} 39. Qc3 {[%clk 0:00:18]}  f6 {[%clk 0:00:14]} 40. g3 {[%clk 0:00:17]}  Kh7 {[%clk 0:00:13]} 41. Qf3 {[%clk 0:00:16]}  Rc2 {[%clk 0:00:12]} 42. Qe4+ {[%clk 0:00:16]}  Qg6 {[%clk 0:00:12]} 43. Qe3 {[%clk 0:00:17]}  Qf5 {[%clk 0:00:11]} 44. Rf1 {[%clk 0:00:17]}  h5 {[%clk 0:00:11]} 45. Qb3 {[%clk 0:00:16]}  h4 {[%clk 0:00:11]} 46. gxh4 {[%clk 0:00:16]}  Qg4+ {[%clk 0:00:10]} 47. Qg3 {[%clk 0:00:16]}  Qxg3+ {[%clk 0:00:10]} 48. fxg3 {[%clk 0:00:17]}  Kg6 {[%clk 0:00:11]} 49. Bd4 {[%clk 0:00:17]}  Kh5 {[%clk 0:00:11]} 50. Rf2 {[%clk 0:00:14]}  Rc1+ {[%clk 0:00:06]} 51. Rf1 {[%clk 0:00:13]}  Rc2 {[%clk 0:00:07]} 52. Rf4 {[%clk 0:00:12]}  Rc1+ {[%clk 0:00:06]} 53. Rf1 {[%clk 0:00:11]}  Rc2 {[%clk 0:00:07]} 1/2-1/2


[Site "https://www.chess.com"]

[Event "Titled Tuesday Blitz May 10 Late 2022"]
[White "Miszler, Levente"]
[Black "Sailer, Mike"]
[WhiteFideId "763276"]
[BlackFideId "2012901"]
[WhiteElo "1966"]
[BlackElo "2109"]
[Result "1-0"]
[Round "07"]
[TimeControl "180+1"]
[Date "2022.05.11"]
[WhiteClock "0:00:53"]
[BlackClock "0:00:10"]

1. Nf3 {[%clk 0:03:00]}  d5 {[%clk 0:02:52]} 2. d4 {[%clk 0:02:52]}  Bf5 {[%clk 0:02:42]} 3. Bf4 {[%clk 0:02:51]}  e6 {[%clk 0:02:40]} 4. e3 {[%clk 0:02:51]}  Nf6 {[%clk 0:02:28]} 5. Bd3 {[%clk 0:02:51]}  Bg6 {[%clk 0:02:27]} 6. O-O {[%clk 0:02:50]}  Be7 {[%clk 0:02:16]} 7. h3 {[%clk 0:02:49]}  O-O {[%clk 0:02:12]} 8. c4 {[%clk 0:02:49]}  c6 {[%clk 0:02:08]} 9. Nc3 {[%clk 0:02:49]}  Nbd7 {[%clk 0:02:07]} 10. Ne5 {[%clk 0:02:49]}  Nxe5 {[%clk 0:02:06]} 11. Bxe5 {[%clk 0:02:50]}  a6 {[%clk 0:02:03]} 12. Re1 {[%clk 0:02:48]}  b5 {[%clk 0:02:03]} 13. b3 {[%clk 0:02:47]}  Bd6 {[%clk 0:01:58]} 14. Bxd6 {[%clk 0:02:46]}  Qxd6 {[%clk 0:01:58]} 15. Qe2 {[%clk 0:02:38]}  Rfe8 {[%clk 0:01:49]} 16. Rad1 {[%clk 0:02:30]}  Qb4 {[%clk 0:01:41]} 17. Bxg6 {[%clk 0:02:29]}  hxg6 {[%clk 0:01:40]} 18. Rc1 {[%clk 0:02:22]}  Rac8 {[%clk 0:01:29]} 19. c5 {[%clk 0:02:21]}  e5 {[%clk 0:01:25]} 20. Qd3 {[%clk 0:02:14]}  e4 {[%clk 0:01:18]} 21. Qc2 {[%clk 0:02:13]}  Qa5 {[%clk 0:01:18]} 22. a3 {[%clk 0:02:05]}  Qc7 {[%clk 0:01:18]} 23. b4 {[%clk 0:02:04]}  a5 {[%clk 0:01:16]} 24. bxa5 {[%clk 0:01:55]}  Qxa5 {[%clk 0:01:16]} 25. Rb1 {[%clk 0:01:47]}  Qxa3 {[%clk 0:00:58]} 26. Ra1 {[%clk 0:01:45]}  Qb4 {[%clk 0:00:58]} 27. Reb1 {[%clk 0:01:46]}  Qc4 {[%clk 0:00:59]} 28. Rb3 {[%clk 0:01:32]}  Ra8 {[%clk 0:00:51]} 29. Rab1 {[%clk 0:01:27]}  Ra6 {[%clk 0:00:31]} 30. Rb4 {[%clk 0:01:27]}  Qd3 {[%clk 0:00:31]} 31. Qb2 {[%clk 0:01:24]}  Rea8 {[%clk 0:00:24]} 32. Rd1 {[%clk 0:01:23]}  Ra2 {[%clk 0:00:17]} 33. Qxa2 {[%clk 0:00:59]}  Qxd1+ {[%clk 0:00:17]} 34. Nxd1 {[%clk 0:00:59]}  Rxa2 {[%clk 0:00:17]} 35. Rb1 {[%clk 0:00:57]}  Nd7 {[%clk 0:00:11]} 36. Nc3 {[%clk 0:00:54]}  Kf8 {[%clk 0:00:10]} 37. Nxa2 {[%clk 0:00:53]} 1-0


[Site "https://www.chess.com"]

[Event "Titled Tuesday Blitz May 10 Late 2022"]
[White "Nazaretyan, Tigran"]
[Black "Girsh, Daniel"]
[WhiteFideId "24162345"]
[BlackFideId "30949190"]
[WhiteElo "2225"]
[BlackElo "2456"]
[Result "1-0"]
[Round "07"]
[TimeControl "180+1"]
[Date "2022.05.11"]
[WhiteClock "0:00:28"]
[BlackClock "0:00:04"]

1. d4 {[%clk 0:03:00]}  Nf6 {[%clk 0:02:59]} 2. c4 {[%clk 0:02:59]}  e6 {[%clk 0:02:59]} 3. Nf3 {[%clk 0:02:58]}  d5 {[%clk 0:02:59]} 4. Nc3 {[%clk 0:02:58]}  c6 {[%clk 0:02:59]} 5. e3 {[%clk 0:02:58]}  Nbd7 {[%clk 0:02:58]} 6. Qc2 {[%clk 0:02:58]}  Bd6 {[%clk 0:02:58]} 7. Be2 {[%clk 0:02:57]}  dxc4 {[%clk 0:02:56]} 8. a4 {[%clk 0:02:52]}  e5 {[%clk 0:02:52]} 9. Bxc4 {[%clk 0:02:51]}  O-O {[%clk 0:02:51]} 10. O-O {[%clk 0:02:50]}  Qe7 {[%clk 0:02:49]} 11. a5 {[%clk 0:02:48]}  h6 {[%clk 0:02:45]} 12. h3 {[%clk 0:02:45]}  e4 {[%clk 0:02:41]} 13. Nd2 {[%clk 0:02:44]}  Re8 {[%clk 0:02:42]} 14. b3 {[%clk 0:02:28]}  Nf8 {[%clk 0:02:34]} 15. Qa2 {[%clk 0:02:21]}  Bb8 {[%clk 0:02:28]} 16. Ba3 {[%clk 0:02:18]}  Qc7 {[%clk 0:02:27]} 17. f4 {[%clk 0:02:10]}  exf3 {[%clk 0:02:26]} 18. Rxf3 {[%clk 0:02:07]}  Qh2+ {[%clk 0:02:13]} 19. Kf2 {[%clk 0:02:06]}  Ng6 {[%clk 0:02:04]} 20. b4 {[%clk 0:01:57]}  Be6 {[%clk 0:01:29]} 21. Nf1 {[%clk 0:01:37]}  Qc7 {[%clk 0:01:22]} 22. e4 {[%clk 0:01:26]}  Nh4 {[%clk 0:01:08]} 23. e5 {[%clk 0:01:18]}  Nxf3 {[%clk 0:01:05]} 24. gxf3 {[%clk 0:01:18]}  Nh5 {[%clk 0:00:49]} 25. Ne3 {[%clk 0:01:15]}  Nf4 {[%clk 0:00:46]} 26. Kg3 {[%clk 0:01:12]}  Nh5+ {[%clk 0:00:24]} 27. Kh2 {[%clk 0:01:06]}  Bxc4 {[%clk 0:00:20]} 28. Nxc4 {[%clk 0:01:05]}  Qe7 {[%clk 0:00:19]} 29. Rg1 {[%clk 0:00:59]}  Qh4 {[%clk 0:00:19]} 30. Rg4 {[%clk 0:00:59]}  Qe1 {[%clk 0:00:18]} 31. Ne4 {[%clk 0:00:56]}  Kh7 {[%clk 0:00:15]} 32. Qc2 {[%clk 0:00:55]}  g6 {[%clk 0:00:14]} 33. Bc1 {[%clk 0:00:46]}  f5 {[%clk 0:00:13]} 34. Rg1 {[%clk 0:00:42]}  Qh4 {[%clk 0:00:11]} 35. Ned6 {[%clk 0:00:41]}  Bxd6 {[%clk 0:00:11]} 36. Nxd6 {[%clk 0:00:41]}  Re6 {[%clk 0:00:11]} 37. Qd2 {[%clk 0:00:40]}  f4 {[%clk 0:00:09]} 38. Ne4 {[%clk 0:00:38]}  Rd8 {[%clk 0:00:09]} 39. Qa2 {[%clk 0:00:38]}  Re7 {[%clk 0:00:07]} 40. Bb2 {[%clk 0:00:35]}  Ng7 {[%clk 0:00:04]} 41. Nf6+ {[%clk 0:00:34]}  Kh8 {[%clk 0:00:04]} 42. Rxg6 {[%clk 0:00:32]}  Ne6 {[%clk 0:00:04]} 43. Ng4 {[%clk 0:00:28]} 1-0


[Site "https://www.chess.com"]

[Event "Titled Tuesday Blitz May 10 Late 2022"]
[White "Petrovic, Aleksa"]
[Black "Petrova, Irina"]
[WhiteFideId "967629"]
[BlackFideId "14124122"]
[WhiteElo "2144"]
[BlackElo "1993"]
[Result "1/2-1/2"]
[Round "07"]
[TimeControl "180+1"]
[Date "2022.05.11"]
[WhiteClock "0:00:05"]
[BlackClock "0:00:15"]

1. d4 {[%clk 0:03:00]}  d6 {[%clk 0:02:59]} 2. Nf3 {[%clk 0:02:59]}  g6 {[%clk 0:02:59]} 3. c4 {[%clk 0:02:59]}  Bg7 {[%clk 0:02:58]} 4. Nc3 {[%clk 0:02:56]}  Nc6 {[%clk 0:02:58]} 5. Bg5 {[%clk 0:02:56]}  Bg4 {[%clk 0:02:56]} 6. e3 {[%clk 0:02:55]}  Nf6 {[%clk 0:02:50]} 7. Be2 {[%clk 0:02:54]}  e5 {[%clk 0:02:39]} 8. dxe5 {[%clk 0:02:29]}  dxe5 {[%clk 0:02:39]} 9. Qxd8+ {[%clk 0:02:28]}  Rxd8 {[%clk 0:02:40]} 10. Bxf6 {[%clk 0:01:50]}  Bxf6 {[%clk 0:02:39]} 11. Nd5 {[%clk 0:01:50]}  Bg7 {[%clk 0:02:16]} 12. Nxc7+ {[%clk 0:01:48]}  Kd7 {[%clk 0:02:12]} 13. Nd5 {[%clk 0:01:34]}  e4 {[%clk 0:02:10]} 14. Nd4 {[%clk 0:01:27]}  Bxe2 {[%clk 0:02:07]} 15. Nxe2 {[%clk 0:01:21]}  Kc8 {[%clk 0:01:47]} 16. Nec3 {[%clk 0:01:02]}  Ne5 {[%clk 0:01:41]} 17. Nxe4 {[%clk 0:00:48]}  Kb8 {[%clk 0:01:32]} 18. O-O-O {[%clk 0:00:39]}  Nxc4 {[%clk 0:01:28]} 19. Ndc3 {[%clk 0:00:38]}  f5 {[%clk 0:01:19]} 20. Ng5 {[%clk 0:00:24]}  Rc8 {[%clk 0:01:16]} 21. Rd7 {[%clk 0:00:20]}  Bxc3 {[%clk 0:01:09]} 22. bxc3 {[%clk 0:00:19]}  Ne5 {[%clk 0:01:01]} 23. Re7 {[%clk 0:00:19]}  Ng4 {[%clk 0:00:58]} 24. Rd1 {[%clk 0:00:16]}  Rxc3+ {[%clk 0:00:57]} 25. Kb2 {[%clk 0:00:16]}  Rhc8 {[%clk 0:00:55]} 26. Rd2 {[%clk 0:00:13]}  R3c6 {[%clk 0:00:50]} 27. a3 {[%clk 0:00:08]}  Nxh2 {[%clk 0:00:38]} 28. Nxh7 {[%clk 0:00:04]}  Ng4 {[%clk 0:00:28]} 29. Ka2 {[%clk 0:00:04]}  Rc2+ {[%clk 0:00:26]} 30. Rxc2 {[%clk 0:00:04]}  Rxc2+ {[%clk 0:00:27]} 31. Kb3 {[%clk 0:00:05]}  Rxf2 {[%clk 0:00:24]} 32. Nf8 {[%clk 0:00:05]}  Re2 {[%clk 0:00:21]} 33. Nxg6 {[%clk 0:00:04]}  Rxe3+ {[%clk 0:00:20]} 34. Rxe3 {[%clk 0:00:04]}  Nxe3 {[%clk 0:00:21]} 35. Nh4 {[%clk 0:00:02]}  Kc7 {[%clk 0:00:19]} 36. Kc3 {[%clk 0:00:02]}  f4 {[%clk 0:00:17]} 37. Kd3 {[%clk 0:00:02]}  Kb6 {[%clk 0:00:17]} 38. Ke4 {[%clk 0:00:02]}  Nxg2 {[%clk 0:00:15]} 39. Nxg2 {[%clk 0:00:01]}  Ka5 {[%clk 0:00:15]} 40. Nxf4 {[%clk 0:00:02]}  Ka4 {[%clk 0:00:15]} 41. Kd3 {[%clk 0:00:03]}  Kxa3 {[%clk 0:00:16]} 42. Kc2 {[%clk 0:00:03]}  b5 {[%clk 0:00:16]} 43. Kb1 {[%clk 0:00:03]}  a5 {[%clk 0:00:16]} 44. Ne6 {[%clk 0:00:03]}  b4 {[%clk 0:00:16]} 45. Nc5 {[%clk 0:00:03]}  a4 {[%clk 0:00:15]} 46. Nxa4 {[%clk 0:00:02]}  Kxa4 {[%clk 0:00:15]} 47. Ka2 {[%clk 0:00:03]}  b3+ {[%clk 0:00:14]} 48. Kb2 {[%clk 0:00:04]}  Kb4 {[%clk 0:00:14]} 49. Kb1 {[%clk 0:00:04]}  Kc3 {[%clk 0:00:14]} 50. Kc1 {[%clk 0:00:05]}  b2+ {[%clk 0:00:14]} 51. Kb1 {[%clk 0:00:05]}  Kb3 {[%clk 0:00:15]} 1/2-1/2


[Site "https://www.chess.com"]

[Event "Titled Tuesday Blitz May 10 Late 2022"]
[White "Pinheiro, Iung Alicio de O."]
[Black "Matinian, Nikita"]
[WhiteFideId "2104350"]
[BlackFideId "24129100"]
[WhiteElo "2283"]
[BlackElo "2422"]
[Result "0-1"]
[Round "07"]
[TimeControl "180+1"]
[Date "2022.05.11"]
[WhiteClock "0:00:12"]
[BlackClock "0:00:05"]

1. c4 {[%clk 0:03:00]}  e5 {[%clk 0:02:58]} 2. g3 {[%clk 0:02:59]}  Nc6 {[%clk 0:02:44]} 3. Bg2 {[%clk 0:02:58]}  f5 {[%clk 0:02:41]} 4. a3 {[%clk 0:02:56]}  Nf6 {[%clk 0:02:41]} 5. Nc3 {[%clk 0:02:55]}  g6 {[%clk 0:02:34]} 6. d3 {[%clk 0:02:43]}  Bg7 {[%clk 0:02:19]} 7. e4 {[%clk 0:02:38]}  d6 {[%clk 0:02:05]} 8. Nge2 {[%clk 0:02:37]}  O-O {[%clk 0:02:03]} 9. O-O {[%clk 0:02:35]}  Be6 {[%clk 0:01:42]} 10. Nd5 {[%clk 0:02:32]}  Nh5 {[%clk 0:01:42]} 11. exf5 {[%clk 0:02:25]}  gxf5 {[%clk 0:01:42]} 12. f4 {[%clk 0:02:21]}  Nf6 {[%clk 0:01:40]} 13. Kh1 {[%clk 0:02:12]}  Kh8 {[%clk 0:01:27]} 14. Be3 {[%clk 0:02:11]}  Qd7 {[%clk 0:01:24]} 15. Qd2 {[%clk 0:02:07]}  Rae8 {[%clk 0:00:55]} 16. Rae1 {[%clk 0:02:03]}  b6 {[%clk 0:00:52]} 17. b3 {[%clk 0:02:01]}  a5 {[%clk 0:00:44]} 18. Nxf6 {[%clk 0:01:50]}  Bxf6 {[%clk 0:00:43]} 19. d4 {[%clk 0:01:50]}  Nxd4 {[%clk 0:00:37]} 20. Nxd4 {[%clk 0:01:49]}  exd4 {[%clk 0:00:38]} 21. Bxd4 {[%clk 0:01:50]}  Bxd4 {[%clk 0:00:31]} 22. Qxd4+ {[%clk 0:01:49]}  Qg7 {[%clk 0:00:32]} 23. Qxg7+ {[%clk 0:01:43]}  Kxg7 {[%clk 0:00:32]} 24. Bc6 {[%clk 0:01:44]}  Re7 {[%clk 0:00:33]} 25. Rf3 {[%clk 0:01:22]}  Kf6 {[%clk 0:00:28]} 26. Rfe3 {[%clk 0:01:18]}  Rff7 {[%clk 0:00:28]} 27. Kg1 {[%clk 0:01:05]}  Bc8 {[%clk 0:00:27]} 28. Kf2 {[%clk 0:00:53]}  Rxe3 {[%clk 0:00:25]} 29. Rxe3 {[%clk 0:00:54]}  Re7 {[%clk 0:00:25]} 30. Rxe7 {[%clk 0:00:40]}  Kxe7 {[%clk 0:00:26]} 31. Ke3 {[%clk 0:00:41]}  Be6 {[%clk 0:00:25]} 32. Kd4 {[%clk 0:00:41]}  Bf7 {[%clk 0:00:21]} 33. Bf3 {[%clk 0:00:40]}  c5+ {[%clk 0:00:19]} 34. Kc3 {[%clk 0:00:38]}  Be8 {[%clk 0:00:17]} 35. b4 {[%clk 0:00:37]}  cxb4+ {[%clk 0:00:13]} 36. axb4 {[%clk 0:00:38]}  Bf7 {[%clk 0:00:12]} 37. h3 {[%clk 0:00:35]}  h5 {[%clk 0:00:11]} 38. Bd1 {[%clk 0:00:25]}  Kf6 {[%clk 0:00:05]} 39. Bf3 {[%clk 0:00:24]}  Kg6 {[%clk 0:00:04]} 40. bxa5 {[%clk 0:00:15]}  bxa5 {[%clk 0:00:05]} 41. Be2 {[%clk 0:00:16]}  Be8 {[%clk 0:00:03]} 42. Kd4 {[%clk 0:00:15]}  Bc6 {[%clk 0:00:03]} 43. Bd1 {[%clk 0:00:14]}  Bg2 {[%clk 0:00:03]} 44. h4 {[%clk 0:00:14]}  Bc6 {[%clk 0:00:04]} 45. Kc3 {[%clk 0:00:14]}  Be8 {[%clk 0:00:03]} 46. Kb3 {[%clk 0:00:13]}  Kf6 {[%clk 0:00:03]} 47. Ka3 {[%clk 0:00:13]}  Ke6 {[%clk 0:00:03]} 48. Ba4 {[%clk 0:00:13]}  Bxa4 {[%clk 0:00:03]} 49. Kxa4 {[%clk 0:00:14]}  d5 {[%clk 0:00:04]} 50. c5 {[%clk 0:00:13]}  d4 {[%clk 0:00:04]} 51. Kb5 {[%clk 0:00:12]}  d3 {[%clk 0:00:04]} 52. c6 {[%clk 0:00:12]}  d2 {[%clk 0:00:04]} 53. c7 {[%clk 0:00:11]}  Kd7 {[%clk 0:00:05]} 54. Kb6 {[%clk 0:00:12]}  d1=Q {[%clk 0:00:05]} 0-1


[Site "https://www.chess.com"]

[Event "Titled Tuesday Blitz May 10 Late 2022"]
[White "Prieto Aranguren, Alain"]
[Black "Joubert, Dantelle"]
[WhiteFideId "2268906"]
[BlackFideId "14310813"]
[WhiteElo "2235"]
[BlackElo "1507"]
[Result "0-1"]
[Round "07"]
[TimeControl "180+1"]
[Date "2022.05.11"]
[WhiteClock "0:02:08"]
[BlackClock "0:00:49"]

1. e4 {[%clk 0:02:58]}  c5 {[%clk 0:02:58]} 2. c3 {[%clk 0:02:59]}  g6 {[%clk 0:02:53]} 3. Nf3 {[%clk 0:02:59]}  Bg7 {[%clk 0:02:45]} 4. d4 {[%clk 0:02:59]}  cxd4 {[%clk 0:02:43]} 5. cxd4 {[%clk 0:03:00]}  d5 {[%clk 0:02:33]} 6. e5 {[%clk 0:03:00]}  Nc6 {[%clk 0:02:32]} 7. Nc3 {[%clk 0:02:59]}  Bg4 {[%clk 0:02:31]} 8. Be2 {[%clk 0:02:59]}  Nh6 {[%clk 0:02:30]} 9. h3 {[%clk 0:02:59]}  Bxf3 {[%clk 0:02:30]} 10. Bxf3 {[%clk 0:02:59]}  Nf5 {[%clk 0:02:30]} 11. Be3 {[%clk 0:03:00]}  O-O {[%clk 0:02:19]} 12. O-O {[%clk 0:02:59]}  e6 {[%clk 0:02:19]} 13. Na4 {[%clk 0:02:51]}  b6 {[%clk 0:02:16]} 14. Rc1 {[%clk 0:02:50]}  Rc8 {[%clk 0:02:14]} 15. Be2 {[%clk 0:02:50]}  Nxe3 {[%clk 0:02:07]} 16. fxe3 {[%clk 0:02:49]}  Qg5 {[%clk 0:02:03]} 17. Qd2 {[%clk 0:02:41]}  Bh6 {[%clk 0:02:01]} 18. Rf3 {[%clk 0:02:36]}  Nxd4 {[%clk 0:01:44]} 19. Rxc8 {[%clk 0:02:32]}  Nxf3+ {[%clk 0:01:43]} 20. Bxf3 {[%clk 0:02:30]}  Rxc8 {[%clk 0:01:43]} 21. Kf2 {[%clk 0:02:30]}  Qxe5 {[%clk 0:01:33]} 22. Nc3 {[%clk 0:02:29]}  Rc4 {[%clk 0:01:17]} 23. Qd3 {[%clk 0:02:21]}  Kg7 {[%clk 0:01:10]} 24. Ne2 {[%clk 0:02:14]}  Qxb2 {[%clk 0:01:08]} 25. Kg3 {[%clk 0:02:13]}  Qe5+ {[%clk 0:01:03]} 26. Kf2 {[%clk 0:02:13]}  b5 {[%clk 0:01:01]} 27. Nd4 {[%clk 0:02:10]}  Bxe3+ {[%clk 0:00:57]} 28. Qxe3 {[%clk 0:02:09]}  Qxd4 {[%clk 0:00:57]} 29. Qxd4+ {[%clk 0:02:09]}  Rxd4 {[%clk 0:00:57]} 30. Ke3 {[%clk 0:02:10]}  Rc4 {[%clk 0:00:56]} 31. Kd3 {[%clk 0:02:09]}  a5 {[%clk 0:00:55]} 32. Be2 {[%clk 0:02:09]}  b4 {[%clk 0:00:53]} 33. Kd2 {[%clk 0:02:08]}  Kf6 {[%clk 0:00:51]} 34. Bd3 {[%clk 0:02:08]}  Ke5 {[%clk 0:00:50]} 35. g4 {[%clk 0:02:08]}  Kd4 {[%clk 0:00:50]} 36. Bc2 {[%clk 0:02:08]}  Rxc2+ {[%clk 0:00:49]} 37. Kxc2 {[%clk 0:02:08]}  e5 {[%clk 0:00:49]} 0-1


[Site "https://www.chess.com"]

[Event "Titled Tuesday Blitz May 10 Late 2022"]
[White "Ramirez Vido, Robert Yorisan"]
[Black "Tomaszewski, Kacper"]
[WhiteFideId "3513823"]
[BlackFideId "1127373"]
[WhiteElo "2355"]
[BlackElo "2153"]
[Result "0-1"]
[Round "07"]
[TimeControl "180+1"]
[Date "2022.05.11"]
[WhiteClock "0:00:59"]
[BlackClock "0:02:14"]

1. Nf3 {[%clk 0:03:00]}  c5 {[%clk 0:02:58]} 2. g3 {[%clk 0:03:01]}  b6 {[%clk 0:02:58]} 3. Bg2 {[%clk 0:03:02]}  Bb7 {[%clk 0:02:58]} 4. O-O {[%clk 0:03:02]}  e6 {[%clk 0:02:59]} 5. d3 {[%clk 0:03:03]}  Nf6 {[%clk 0:02:59]} 6. e4 {[%clk 0:03:03]}  Be7 {[%clk 0:02:58]} 7. Nbd2 {[%clk 0:03:03]}  O-O {[%clk 0:02:58]} 8. Re1 {[%clk 0:03:04]}  Ne8 {[%clk 0:02:58]} 9. a4 {[%clk 0:03:03]}  Nc6 {[%clk 0:02:57]} 10. Nc4 {[%clk 0:03:03]}  d5 {[%clk 0:02:55]} 11. exd5 {[%clk 0:03:03]}  exd5 {[%clk 0:02:56]} 12. Nce5 {[%clk 0:03:04]}  Nxe5 {[%clk 0:02:55]} 13. Nxe5 {[%clk 0:03:05]}  Bd6 {[%clk 0:02:48]} 14. Bf4 {[%clk 0:03:00]}  Nf6 {[%clk 0:02:48]} 15. Qd2 {[%clk 0:02:53]}  Qc7 {[%clk 0:02:35]} 16. d4 {[%clk 0:02:23]}  Ne4 {[%clk 0:02:28]} 17. Qe3 {[%clk 0:01:46]}  cxd4 {[%clk 0:02:24]} 18. Qxd4 {[%clk 0:01:43]}  Bc5 {[%clk 0:02:23]} 19. Nf3 {[%clk 0:01:02]}  Bxd4 {[%clk 0:02:17]} 20. Bxc7 {[%clk 0:01:00]}  Bxf2+ {[%clk 0:02:17]} 21. Kf1 {[%clk 0:00:59]}  Ba6+ {[%clk 0:02:14]} 0-1


[Site "https://www.chess.com"]

[Event "Titled Tuesday Blitz May 10 Late 2022"]
[White "Remolar Gallen, Jose"]
[Black "Hnydiuk, Aleksander"]
[WhiteFideId "2215187"]
[BlackFideId "1109057"]
[WhiteElo "2205"]
[BlackElo "2374"]
[Result "0-1"]
[Round "07"]
[TimeControl "180+1"]
[Date "2022.05.11"]
[WhiteClock "0:00:15"]
[BlackClock "0:01:32"]

1. d4 {[%clk 0:03:00]}  Nf6 {[%clk 0:02:59]} 2. Nf3 {[%clk 0:03:00]}  g6 {[%clk 0:02:59]} 3. Nbd2 {[%clk 0:03:00]}  d5 {[%clk 0:02:51]} 4. e3 {[%clk 0:02:59]}  Bg7 {[%clk 0:02:47]} 5. Be2 {[%clk 0:02:59]}  O-O {[%clk 0:02:46]} 6. O-O {[%clk 0:03:00]}  c5 {[%clk 0:02:45]} 7. b3 {[%clk 0:03:01]}  Nc6 {[%clk 0:02:45]} 8. Bb2 {[%clk 0:03:00]}  cxd4 {[%clk 0:02:45]} 9. exd4 {[%clk 0:03:01]}  Ne4 {[%clk 0:02:43]} 10. h3 {[%clk 0:02:44]}  Bf5 {[%clk 0:02:41]} 11. Bd3 {[%clk 0:02:35]}  Nb4 {[%clk 0:02:32]} 12. Bxe4 {[%clk 0:02:10]}  dxe4 {[%clk 0:02:33]} 13. Nh4 {[%clk 0:02:10]}  Bxd4 {[%clk 0:02:28]} 14. c3 {[%clk 0:01:59]}  Bf6 {[%clk 0:02:22]} 15. Nxf5 {[%clk 0:01:58]}  gxf5 {[%clk 0:02:23]} 16. cxb4 {[%clk 0:01:46]}  Bxb2 {[%clk 0:02:24]} 17. Rb1 {[%clk 0:01:46]}  Bg7 {[%clk 0:02:21]} 18. Qe1 {[%clk 0:01:25]}  Bc3 {[%clk 0:02:16]} 19. Rd1 {[%clk 0:01:25]}  Qd3 {[%clk 0:02:14]} 20. Qe3 {[%clk 0:01:21]}  Qxe3 {[%clk 0:02:09]} 21. fxe3 {[%clk 0:01:22]}  e6 {[%clk 0:02:09]} 22. g4 {[%clk 0:00:55]}  Rad8 {[%clk 0:01:57]} 23. Nc4 {[%clk 0:00:52]}  b5 {[%clk 0:01:54]} 24. Nd6 {[%clk 0:00:44]}  Bxb4 {[%clk 0:01:50]} 25. Nxb5 {[%clk 0:00:43]}  Bc5 {[%clk 0:01:47]} 26. Kf2 {[%clk 0:00:41]}  f4 {[%clk 0:01:44]} 27. Nd4 {[%clk 0:00:24]}  fxe3+ {[%clk 0:01:42]} 28. Kxe3 {[%clk 0:00:22]}  Rxd4 {[%clk 0:01:38]} 29. Rxd4 {[%clk 0:00:21]}  Rd8 {[%clk 0:01:36]} 30. Kxe4 {[%clk 0:00:17]}  Rxd4+ {[%clk 0:01:35]} 31. Ke5 {[%clk 0:00:17]}  Rd5+ {[%clk 0:01:33]} 32. Kf6 {[%clk 0:00:16]}  Kf8 {[%clk 0:01:32]} 33. Rc1 {[%clk 0:00:15]}  Be7# {[%clk 0:01:32]} 0-1


[Site "https://www.chess.com"]